[Event "NJSK 2018 Jeugd C"]
[Site "Assen, Netherlands"]
[Date "2018.04.30"]
[Round "2.5"]
[White "Van Foreest, Nanne"]
[Black "Roebers, Eline"]
[Result "1-0"]
[TimeControl "40/90m+30sec/move"]
[WhiteElo "1482"]
[BlackElo "1961"]

1. e4 {[%clk 01:30:57]} {[%emt 00:00:02]} c6 {[%clk 01:30:48]} {[%emt
00:00:13]} 2. d4 {[%clk 01:31:23]} {[%emt 00:00:05]} d5 {[%clk 01:31:14]}
{[%emt 00:00:04]} 3. exd5 {[%clk 01:31:49]} {[%emt 00:00:03]} cxd5 {[%clk
01:31:38]} {[%emt 00:00:07]} 4. c4 {[%clk 01:32:16]} {[%emt 00:00:03]} Nf6
{[%clk 01:31:50]} {[%emt 00:00:18]} 5. Nc3 {[%clk 01:32:42]} {[%emt 00:00:04]}
Nc6 {[%clk 01:31:39]} {[%emt 00:00:41]} 6. Nf3 {[%clk 01:33:07]} {[%emt
00:00:05]} g6 {[%clk 01:31:29]} {[%emt 00:00:40]} 7. cxd5 {[%clk 01:33:02]}
{[%emt 00:00:35]} Nxd5 {[%clk 01:30:52]} {[%emt 00:01:07]} 8. Qb3 {[%clk
01:32:06]} {[%emt 00:01:26]} Nxc3 {[%clk 01:27:55]} {[%emt 00:03:26]} 9. Bc4
{[%clk 01:31:29]} {[%emt 00:01:08]} e6 {[%clk 01:25:00]} {[%emt 00:03:25]} 10.
bxc3 {[%clk 01:31:14]} {[%emt 00:00:45]} Be7 {[%clk 01:17:32]} {[%emt
00:07:57]} 11. Bh6 {[%clk 01:31:10]} {[%emt 00:00:33]} Bd7 {[%clk 01:14:27]}
{[%emt 00:03:36]} 12. Qc2 {[%clk 01:29:31]} {[%emt 00:02:09]} Qc7 {[%clk
01:08:53]} {[%emt 00:06:04]} 13. O-O {[%clk 01:29:48]} {[%emt 00:00:14]} Rc8
{[%clk 01:06:39]} {[%emt 00:02:43]} 14. d5 {[%clk 01:27:58]} {[%emt 00:02:21]}
Nb4 {[%clk 00:59:28]} {[%emt 00:07:41]} 15. Qb2 {[%clk 01:26:13]} {[%emt
00:02:15]} Qxc4 {[%clk 00:55:58]} {[%emt 00:04:00]} 16. cxb4 {[%clk 01:26:26]}
{[%emt 00:00:17]} Rg8 {[%clk 00:55:11]} {[%emt 00:01:16]} 17. dxe6 {[%clk
01:26:22]} {[%emt 00:00:35]} Bxe6 {[%clk 00:53:24]} {[%emt 00:02:17]} 18. b5
{[%clk 01:16:26]} {[%emt 00:10:26]} Rc5 {[%clk 00:45:35]} {[%emt 00:08:19]} 19.
a4 {[%clk 01:14:16]} {[%emt 00:02:40]} Qg4 {[%clk 00:25:33]} {[%emt 00:20:31]}
20. h3 {[%clk 01:12:33]} {[%emt 00:02:13]} Qh5 {[%clk 00:20:52]} {[%emt
00:05:10]} 21. Be3 {[%clk 01:12:49]} {[%emt 00:00:14]} Rd5 {[%clk 00:19:48]}
{[%emt 00:01:35]} 22. Rfd1 {[%clk 01:12:07]} {[%emt 00:01:12]} Rxd1+ {[%clk
00:14:27]} {[%emt 00:05:51]} 23. Rxd1 {[%clk 01:12:25]} {[%emt 00:00:11]} Bxh3
{[%clk 00:12:51]} {[%emt 00:02:06]} 24. gxh3 {[%clk 01:12:37]} {[%emt
00:00:18]} Qxf3 {[%clk 00:13:14]} {[%emt 00:00:08]} 25. Qc1 {[%clk 01:12:11]}
{[%emt 00:00:56]} Qf5 {[%clk 00:06:05]} {[%emt 00:07:39]} 26. Qc7 {[%clk
01:10:20]} {[%emt 00:02:20]} f6 {[%clk 00:03:54]} {[%emt 00:02:41]} 27. Qxb7
{[%clk 01:09:42]} {[%emt 00:01:08]} Qxh3 {[%clk 00:01:20]} {[%emt 00:03:04]} 28.
Rc1 {[%clk 01:07:15]} {[%emt 00:02:57]} Qg4+ {[%clk 00:01:21]} {[%emt
00:00:28]} 29. Kf1 {[%clk 01:07:28]} {[%emt 00:00:18]} Qh3+ {[%clk 00:01:14]}
{[%emt 00:00:37]} 30. Qg2 {[%clk 01:06:40]} {[%emt 00:01:18]} Qxg2+ {[%clk
00:01:06]} {[%emt 00:00:38]} 31. Kxg2 {[%clk 01:07:05]} {[%emt 00:00:05]} Kd7
{[%clk 00:01:06]} {[%emt 00:00:30]} 32. Bxa7 {[%clk 01:07:25]} {[%emt
00:00:11]} Rc8 {[%clk 00:00:46]} {[%emt 00:00:50]} 33. Rd1+ {[%clk 01:07:31]}
{[%emt 00:00:24]} Kc7 {[%clk 00:00:42]} {[%emt 00:00:34]} 34. b6+ {[%clk
01:07:55]} {[%emt 00:00:06]} Kc6 {[%clk 00:00:47]} {[%emt 00:00:25]} 35. a5
{[%clk 01:08:16]} {[%emt 00:00:09]} Bb4 {[%clk 00:00:37]} {[%emt 00:00:41]} 36.
a6 {[%clk 01:08:32]} {[%emt 00:00:13]} Bd6 {[%clk 00:00:44]} {[%emt 00:00:23]}
37. Rc1+ {[%clk 01:08:55]} {[%emt 00:00:07]} Kd7 {[%clk 00:01:00]} {[%emt
00:00:13]} 38. Rd1 {[%clk 01:08:59]} {[%emt 00:00:26]} Ke7 {[%clk 00:00:45]}
{[%emt 00:00:45]} 39. b7 {[%clk 01:08:34]} {[%emt 00:00:55]} Rd8 {[%clk
00:00:43]} {[%emt 00:00:32]} 40. Bb6 {[%clk 01:08:48]} {[%emt 00:00:17]} Re8
{[%clk 00:00:53]} {[%emt 00:00:20]} 41. Rxd6 {[%clk 01:08:58]} {[%emt
00:00:20]} Kxd6 {[%clk 00:01:14]} {[%emt 00:00:08]} 42. a7 {[%clk 01:09:24]}
{[%emt 00:00:04]} 1-0

[Event "NJSK 2018 Jeugd C"]
[Site "Assen, Netherlands"]
[Date "2018.04.30"]
[Round "2.6"]
[White "Nguyen, Lucas"]
[Black "Catalan, Ciro"]
[Result "1-0"]
[TimeControl "40/90m+30sec/move"]
[WhiteElo "1919"]
[BlackElo "1503"]

1. e4 {[%clk 01:30:57]} {[%emt 00:00:02]} c5 {[%clk 01:30:54]} {[%emt
00:00:07]} 2. Nf3 {[%clk 01:31:20]} {[%emt 00:00:07]} d6 {[%clk 01:31:16]}
{[%emt 00:00:07]} 3. d4 {[%clk 01:31:46]} {[%emt 00:00:04]} cxd4 {[%clk
01:31:42]} {[%emt 00:00:05]} 4. Nxd4 {[%clk 01:32:11]} {[%emt 00:00:04]} Nf6
{[%clk 01:32:05]} {[%emt 00:00:07]} 5. Nc3 {[%clk 01:32:35]} {[%emt 00:00:07]}
a6 {[%clk 01:32:28]} {[%emt 00:00:07]} 6. f3 {[%clk 01:33:00]} {[%emt
00:00:04]} e5 {[%clk 01:32:48]} {[%emt 00:00:10]} 7. Nb3 {[%clk 01:33:23]}
{[%emt 00:00:06]} h5 {[%clk 01:33:11]} {[%emt 00:00:08]} 8. Be3 {[%clk
01:33:08]} {[%emt 00:00:45]} Be6 {[%clk 01:33:20]} {[%emt 00:00:21]} 9. Qd2
{[%clk 01:33:03]} {[%emt 00:00:35]} Nbd7 {[%clk 01:32:50]} {[%emt 00:01:00]} 10.
O-O-O {[%clk 01:33:05]} {[%emt 00:00:28]} Be7 {[%clk 01:31:57]} {[%emt
00:01:23]} 11. h3 {[%clk 01:32:43]} {[%emt 00:00:52]} b5 {[%clk 01:30:24]}
{[%emt 00:02:03]} 12. Be2 {[%clk 01:08:27]} {[%emt 00:24:46]} b4 {[%clk
01:14:04]} {[%emt 00:16:50]} 13. Nd5 {[%clk 01:07:45]} {[%emt 00:01:12]} Bxd5
{[%clk 01:14:10]} {[%emt 00:00:25]} 14. exd5 {[%clk 01:08:10]} {[%emt
00:00:05]} Nb6 {[%clk 01:14:16]} {[%emt 00:00:23]} 15. Bxb6 {[%clk 01:08:34]}
{[%emt 00:00:06]} Qxb6 {[%clk 01:14:40]} {[%emt 00:00:06]} 16. Qd3 {[%clk
01:07:10]} {[%emt 00:01:55]} Nd7 {[%clk 00:59:25]} {[%emt 00:15:45]} 17. Kb1
{[%clk 01:01:23]} {[%emt 00:06:17]} Bf6 {[%clk 00:52:58]} {[%emt 00:06:56]} 18.
Rhe1 {[%clk 00:58:09]} {[%emt 00:03:44]} Bh4 {[%clk 00:29:28]} {[%emt
00:24:00]} 19. Rf1 {[%clk 00:56:32]} {[%emt 00:02:07]} g6 {[%clk 00:26:22]}
{[%emt 00:03:35]} 20. f4 {[%clk 00:54:12]} {[%emt 00:02:50]} Be7 {[%clk
00:21:10]} {[%emt 00:05:40]} 21. Nd2 {[%clk 00:50:43]} {[%emt 00:04:01]} Qc7
{[%clk 00:14:20]} {[%emt 00:07:21]} 22. Nc4 {[%clk 00:48:54]} {[%emt 00:02:20]}
Bf6 {[%clk 00:11:54]} {[%emt 00:02:56]} 23. g4 {[%clk 00:45:34]} {[%emt
00:03:50]} exf4 {[%clk 00:07:40]} {[%emt 00:04:45]} 24. Rxf4 {[%clk 00:44:33]}
{[%emt 00:01:31]} Ne5 {[%clk 00:07:23]} {[%emt 00:00:47]} 25. Qe4 {[%clk
00:43:32]} {[%emt 00:01:31]} Bg7 {[%clk 00:06:36]} {[%emt 00:01:17]} 26. Rdf1
{[%clk 00:42:54]} {[%emt 00:01:07]} O-O-O {[%clk 00:02:55]} {[%emt 00:04:12]}
27. Nxe5 {[%clk 00:42:29]} {[%emt 00:00:54]} Bxe5 {[%clk 00:03:20]} {[%emt
00:00:05]} 28. Bxa6+ {[%clk 00:41:52]} {[%emt 00:01:07]} Kb8 {[%clk 00:03:39]}
{[%emt 00:00:12]} 29. Rxf7 {[%clk 00:40:20]} {[%emt 00:02:01]} Qa5 {[%clk
00:03:30]} {[%emt 00:00:39]} 30. Qc4 {[%clk 00:39:37]} {[%emt 00:01:13]} Qc5
{[%clk 00:01:38]} {[%emt 00:02:22]} 31. Rb7+ {[%clk 00:34:29]} {[%emt
00:05:38]} Ka8 {[%clk 00:01:58]} {[%emt 00:00:10]} 32. Qxb4 {[%clk 00:30:54]}
{[%emt 00:04:06]} Qxb4 {[%clk 00:01:16]} {[%emt 00:01:11]} 33. Rxb4 {[%clk
00:31:19]} {[%emt 00:00:04]} Rd7 {[%clk 00:01:17]} {[%emt 00:00:29]} 34. Bb5
{[%clk 00:30:34]} {[%emt 00:01:16]} Re7 {[%clk 00:01:01]} {[%emt 00:00:46]} 35.
Bc6+ {[%clk 00:30:51]} {[%emt 00:00:13]} Ka7 {[%clk 00:01:20]} {[%emt
00:00:09]} 36. Rf3 {[%clk 00:30:22]} {[%emt 00:01:00]} Bc3 {[%clk 00:00:43]}
{[%emt 00:01:08]} 37. bxc3 {[%emt 00:00:13]} 1-0

[Event "NJSK 2018 Jeugd C"]
[Site "Assen, Netherlands"]
[Date "2018.04.30"]
[Round "2.7"]
[White "Maters, Arthur"]
[Black "Labruyere, Roger"]
[Result "1-0"]
[TimeControl "40/90m+30sec/move"]
[WhiteElo "1895"]
[BlackElo "1665"]

1. e4 {[%clk 01:30:58]} {[%emt 00:00:01]} c6 {[%clk 01:31:00]} {[%emt
00:00:01]} 2. Nc3 {[%clk 01:31:20]} {[%emt 00:00:09]} d5 {[%clk 01:31:26]}
{[%emt 00:00:04]} 3. Nf3 {[%clk 01:31:44]} {[%emt 00:00:05]} Bg4 {[%clk
01:31:52]} {[%emt 00:00:04]} 4. h3 {[%clk 01:32:07]} {[%emt 00:00:08]} Bxf3
{[%clk 01:32:16]} {[%emt 00:00:05]} 5. Qxf3 {[%clk 01:32:31]} {[%emt 00:00:05]}
Nf6 {[%clk 01:32:42]} {[%emt 00:00:05]} 6. d3 {[%clk 01:32:54]} {[%emt
00:00:07]} e5 {[%clk 01:32:00]} {[%emt 00:01:12]} 7. Bd2 {[%clk 01:31:07]}
{[%emt 00:02:16]} Be7 {[%clk 01:29:08]} {[%emt 00:03:23]} 8. Qg3 {[%clk
01:29:34]} {[%emt 00:02:04]} Nbd7 {[%clk 01:28:52]} {[%emt 00:00:46]} 9. Be2
{[%clk 01:29:08]} {[%emt 00:00:56]} a5 {[%clk 01:26:35]} {[%emt 00:02:47]} 10.
O-O {[%clk 01:21:27]} {[%emt 00:08:11]} O-O {[%clk 01:25:42]} {[%emt 00:01:23]}
11. Bh6 {[%clk 01:18:32]} {[%emt 00:03:24]} Ne8 {[%clk 01:24:02]} {[%emt
00:02:11]} 12. Bc1 {[%clk 01:03:23]} {[%emt 00:15:39]} d4 {[%clk 01:17:45]}
{[%emt 00:06:48]} 13. Nd1 {[%clk 01:02:48]} {[%emt 00:01:04]} Bh4 {[%clk
01:17:37]} {[%emt 00:00:38]} 14. Qh2 {[%clk 01:02:24]} {[%emt 00:00:53]} Nd6
{[%clk 01:15:46]} {[%emt 00:02:21]} 15. f4 {[%clk 01:00:05]} {[%emt 00:02:49]}
Bf6 {[%clk 01:12:36]} {[%emt 00:03:39]} 16. Nf2 {[%clk 00:57:21]} {[%emt
00:03:14]} Qc7 {[%clk 00:59:46]} {[%emt 00:13:21]} 17. Bg4 {[%clk 00:52:36]}
{[%emt 00:05:14]} Rfe8 {[%clk 00:47:30]} {[%emt 00:12:46]} 18. Bxd7 {[%clk
00:52:12]} {[%emt 00:00:55]} Qxd7 {[%clk 00:47:41]} {[%emt 00:00:18]} 19. Ng4
{[%clk 00:52:37]} {[%emt 00:00:05]} h5 {[%clk 00:44:30]} {[%emt 00:03:41]} 20.
Nxf6+ {[%clk 00:47:12]} {[%emt 00:05:55]} gxf6 {[%clk 00:44:17]} {[%emt
00:00:44]} 21. Qg3+ {[%clk 00:47:34]} {[%emt 00:00:06]} Kf8 {[%clk 00:33:44]}
{[%emt 00:11:03]} 22. fxe5 {[%clk 00:47:15]} {[%emt 00:00:49]} Rxe5 {[%clk
00:28:58]} {[%emt 00:05:16]} 23. Rxf6 {[%clk 00:47:21]} {[%emt 00:00:23]} Re6
{[%clk 00:29:18]} {[%emt 00:00:10]} 24. Bh6+ {[%clk 00:40:55]} {[%emt
00:06:57]} Ke7 {[%clk 00:28:55]} {[%emt 00:00:53]} 25. e5 {[%clk 00:40:54]}
{[%emt 00:00:31]} Ne8 {[%clk 00:26:43]} {[%emt 00:02:42]} 26. Rxf7+ {[%clk
00:40:21]} {[%emt 00:01:04]} Kxf7 {[%clk 00:26:57]} {[%emt 00:00:16]} 27. Rf1+
{[%clk 00:40:47]} {[%emt 00:00:03]} Rf6 {[%clk 00:24:18]} {[%emt 00:03:08]} 28.
exf6 {[%clk 00:38:35]} {[%emt 00:02:43]} Ra6 {[%clk 00:22:16]} {[%emt
00:02:32]} 29. Qe5 {[%clk 00:37:54]} {[%emt 00:01:11]} Rb6 {[%clk 00:21:22]}
{[%emt 00:01:25]} 30. Qxh5+ {[%clk 00:37:41]} {[%emt 00:00:42]} Ke6 {[%clk
00:21:11]} {[%emt 00:00:40]} 31. Re1+ {[%clk 00:37:41]} {[%emt 00:00:31]} Kd6
{[%clk 00:21:12]} {[%emt 00:00:30]} 32. Bf4# {[%clk 00:38:06]} {[%emt
00:00:05]} 1-0

[Event "NJSK 2018 Jeugd C"]
[Site "Assen, Netherlands"]
[Date "2018.04.30"]
[Round "2.8"]
[White "Klaren, Duncan"]
[Black "Van der Hagen, Loek"]
[Result "1-0"]
[TimeControl "40/90m+30sec/move"]
[WhiteElo "1713"]
[BlackElo "1815"]

1. e4 {[%clk 01:30:56]} {[%emt 00:00:03]} c5 {[%clk 01:30:57]} {[%emt
00:00:04]} 2. Nf3 {[%clk 01:31:22]} {[%emt 00:00:03]} d6 {[%clk 01:31:22]}
{[%emt 00:00:04]} 3. d4 {[%clk 01:31:48]} {[%emt 00:00:03]} cxd4 {[%clk
01:31:49]} {[%emt 00:00:04]} 4. Nxd4 {[%clk 01:32:13]} {[%emt 00:00:04]} Nf6
{[%clk 01:32:14]} {[%emt 00:00:05]} 5. Nc3 {[%clk 01:32:27]} {[%emt 00:00:16]}
Nc6 {[%clk 01:32:40]} {[%emt 00:00:05]} 6. Bg5 {[%clk 01:32:52]} {[%emt
00:00:05]} e6 {[%clk 01:33:02]} {[%emt 00:00:08]} 7. Qd2 {[%clk 01:33:18]}
{[%emt 00:00:04]} Be7 {[%clk 01:33:27]} {[%emt 00:00:05]} 8. O-O-O {[%clk
01:33:32]} {[%emt 00:00:16]} O-O {[%clk 01:33:50]} {[%emt 00:00:07]} 9. f4
{[%clk 01:33:17]} {[%emt 00:00:45]} Nxd4 {[%clk 01:34:12]} {[%emt 00:00:09]} 10.
Qxd4 {[%clk 01:33:37]} {[%emt 00:00:10]} Qa5 {[%clk 01:34:35]} {[%emt
00:00:07]} 11. Kb1 {[%clk 01:31:44]} {[%emt 00:02:22]} Rd8 {[%clk 01:31:30]}
{[%emt 00:03:35]} 12. Be2 {[%clk 01:25:29]} {[%emt 00:06:45]} Bd7 {[%clk
01:28:05]} {[%emt 00:03:55]} 13. Qd2 {[%clk 01:09:57]} {[%emt 00:16:02]} Qc5
{[%clk 01:14:46]} {[%emt 00:13:49]} 14. g4 {[%clk 01:03:37]} {[%emt 00:06:50]}
Be8 {[%clk 01:06:28]} {[%emt 00:08:48]} 15. f5 {[%clk 01:00:10]} {[%emt
00:03:57]} Rac8 {[%clk 00:58:43]} {[%emt 00:08:15]} 16. Be3 {[%clk 00:57:20]}
{[%emt 00:03:19]} Qb4 {[%clk 00:47:21]} {[%emt 00:11:53]} 17. a3 {[%clk
00:54:42]} {[%emt 00:03:09]} Qa5 {[%clk 00:46:56]} {[%emt 00:00:55]} 18. g5
{[%clk 00:52:38]} {[%emt 00:02:33]} Nd7 {[%clk 00:46:47]} {[%emt 00:00:40]} 19.
Rhf1 {[%clk 00:38:04]} {[%emt 00:15:03]} Bf8 {[%clk 00:38:32]} {[%emt
00:08:45]} 20. g6 {[%clk 00:34:51]} {[%emt 00:03:44]} d5 {[%clk 00:30:17]}
{[%emt 00:08:45]} 21. fxe6 {[%clk 00:31:29]} {[%emt 00:03:52]} fxe6 {[%clk
00:29:31]} {[%emt 00:01:16]} 22. Bg4 {[%clk 00:30:16]} {[%emt 00:01:43]} Bxa3
{[%clk 00:28:12]} {[%emt 00:01:49]} 23. Bxe6+ {[%clk 00:30:17]} {[%emt
00:00:28]} Kh8 {[%clk 00:28:36]} {[%emt 00:00:06]} 24. Bxd5 {[%clk 00:13:35]}
{[%emt 00:17:12]} Bxg6 {[%clk 00:18:29]} {[%emt 00:10:37]} 25. Bd4 {[%clk
00:12:58]} {[%emt 00:01:08]} Bc5 {[%clk 00:17:03]} {[%emt 00:01:56]} 26. h4
{[%clk 00:11:39]} {[%emt 00:01:49]} Bxd4 {[%clk 00:16:18]} {[%emt 00:01:15]} 27.
Qxd4 {[%clk 00:12:04]} {[%emt 00:00:04]} Qc5 {[%clk 00:16:04]} {[%emt
00:00:45]} 28. Qd2 {[%clk 00:11:54]} {[%emt 00:00:40]} Nf6 {[%clk 00:15:02]}
{[%emt 00:01:32]} 29. Qg5 {[%clk 00:09:25]} {[%emt 00:02:58]} Rf8 {[%clk
00:11:42]} {[%emt 00:03:50]} 30. Rg1 {[%clk 00:07:31]} {[%emt 00:02:25]} b5
{[%clk 00:09:57]} {[%emt 00:02:16]} 31. h5 {[%clk 00:06:08]} {[%emt 00:01:53]}
Nxh5 {[%clk 00:09:19]} {[%emt 00:01:07]} 32. Rh1 {[%clk 00:06:21]} {[%emt
00:00:15]} b4 {[%clk 00:09:08]} {[%emt 00:00:42]} 33. Rxh5 {[%clk 00:06:12]}
{[%emt 00:00:39]} Bxh5 {[%clk 00:09:32]} {[%emt 00:00:06]} 34. Qxh5 {[%clk
00:05:44]} {[%emt 00:00:59]} bxc3 {[%clk 00:09:56]} {[%emt 00:00:06]} 35. Rh1
{[%clk 00:05:59]} {[%emt 00:00:14]} h6 {[%clk 00:10:14]} {[%emt 00:00:12]} 36.
Qg6 {[%clk 00:05:31]} {[%emt 00:00:58]} Qe3 {[%clk 00:09:18]} {[%emt 00:01:25]}
37. Rg1 {[%clk 00:05:45]} {[%emt 00:00:17]} Rc7 {[%clk 00:04:45]} {[%emt
00:05:03]} 38. e5 {[%clk 00:05:31]} {[%emt 00:00:44]} Qxe5 {[%clk 00:04:51]}
{[%emt 00:00:24]} 39. Be4 {[%clk 00:05:52]} {[%emt 00:00:08]} Kg8 {[%clk
00:05:14]} {[%emt 00:00:08]} 40. Bd3 {[%clk 00:05:24]} {[%emt 00:00:58]} Rf4
{[%clk 00:04:14]} {[%emt 00:01:30]} 41. Qh7+ {[%clk 00:04:10]} {[%emt
00:01:44]} Kf8 {[%clk 00:04:39]} {[%emt 00:00:05]} 42. Qh8+ {[%clk 00:04:25]}
{[%emt 00:00:14]} Ke7 {[%clk 00:03:49]} {[%emt 00:01:20]} 43. Rxg7+ {[%clk
00:04:46]} {[%emt 00:00:09]} Kd6 {[%clk 00:04:16]} {[%emt 00:00:04]} 44. Qd8+
{[%clk 00:04:16]} {[%emt 00:00:59]} Kc6 {[%clk 00:04:15]} {[%emt 00:00:32]} 45.
Rg6+ {[%clk 00:03:02]} {[%emt 00:01:44]} Kc5 {[%clk 00:04:21]} {[%emt
00:00:24]} 46. Qb8 {[%clk 00:02:35]} {[%emt 00:00:53]} Rf6 {[%clk 00:01:50]}
{[%emt 00:03:05]} 47. Rxf6 {[%clk 00:02:08]} {[%emt 00:00:56]} Qxf6 {[%clk
00:02:04]} {[%emt 00:00:18]} 48. Qxc7+ {[%clk 00:02:34]} {[%emt 00:00:04]} Kd5
{[%clk 00:02:18]} {[%emt 00:00:16]} 49. Qc4+ {[%clk 00:02:31]} {[%emt
00:00:33]} Kd6 {[%clk 00:02:10]} {[%emt 00:00:38]} 50. Qa6+ {[%clk 00:02:09]}
{[%emt 00:00:52]} Ke5 {[%clk 00:02:35]} {[%emt 00:00:05]} 51. Qxa7 {[%clk
00:02:26]} {[%emt 00:00:13]} cxb2 {[%clk 00:02:37]} {[%emt 00:00:28]} 52. Qe3+
{[%clk 00:02:41]} {[%emt 00:00:14]} Kd5 {[%clk 00:02:42]} {[%emt 00:00:26]} 53.
Qe4+ {[%clk 00:03:00]} {[%emt 00:00:11]} Kc5 {[%clk 00:02:57]} {[%emt
00:00:15]} 54. Qc4+ {[%clk 00:03:23]} {[%emt 00:00:07]} Kd6 {[%clk 00:02:47]}
{[%emt 00:00:40]} 55. Qa6+ {[%clk 00:03:48]} {[%emt 00:00:05]} Ke5 {[%clk
00:03:07]} {[%emt 00:00:09]} 56. Qxf6+ {[%clk 00:04:15]} {[%emt 00:00:04]} Kxf6
{[%clk 00:03:30]} {[%emt 00:00:07]} 57. Kxb2 {[%clk 00:04:38]} {[%emt
00:00:07]} h5 {[%clk 00:03:56]} {[%emt 00:00:05]} 58. c4 {[%clk 00:05:02]}
{[%emt 00:00:06]} h4 {[%clk 00:04:10]} {[%emt 00:00:15]} 59. Bf1 {[%clk
00:05:05]} {[%emt 00:00:26]} Ke5 {[%clk 00:04:27]} {[%emt 00:00:14]} 60. Kc3
{[%clk 00:05:31]} {[%emt 00:00:04]} Ke4 {[%clk 00:04:24]} {[%emt 00:00:33]} 61.
c5 {[%clk 00:05:52]} {[%emt 00:00:10]} Kf3 {[%clk 00:04:39]} {[%emt 00:00:14]}
62. c6 {[%clk 00:06:16]} {[%emt 00:00:06]} Kf2 {[%clk 00:05:03]} {[%emt
00:00:06]} 63. Bh3 {[%clk 00:06:42]} {[%emt 00:00:04]} 1-0

[Event "NJSK 2018 Jeugd C"]
[Site "Assen, Netherlands"]
[Date "2018.04.30"]
[Round "2.9"]
[White "Bartels, Vladimir"]
[Black "Van der Schaaf, Tristan"]
[Result "1-0"]
[TimeControl "40/90m+30sec/move"]
[WhiteElo "1757"]
[BlackElo "1647"]

1. e4 {[%clk 01:30:58]} {[%emt 00:00:01]} c6 {[%clk 01:30:56]} {[%emt
00:00:04]} 2. Nc3 {[%clk 01:31:23]} {[%emt 00:00:04]} d5 {[%clk 01:31:15]}
{[%emt 00:00:12]} 3. Nf3 {[%clk 01:31:43]} {[%emt 00:00:11]} Bg4 {[%clk
01:31:33]} {[%emt 00:00:11]} 4. h3 {[%clk 01:27:53]} {[%emt 00:04:21]} Bh5
{[%clk 01:31:30]} {[%emt 00:00:31]} 5. exd5 {[%clk 01:08:07]} {[%emt 00:20:17]}
cxd5 {[%clk 01:23:07]} {[%emt 00:08:53]} 6. Bb5+ {[%clk 01:07:44]} {[%emt
00:00:53]} Nc6 {[%clk 01:21:28]} {[%emt 00:02:08]} 7. g4 {[%clk 01:07:27]}
{[%emt 00:00:48]} Bg6 {[%clk 01:20:12]} {[%emt 00:01:46]} 8. Ne5 {[%clk
01:07:29]} {[%emt 00:00:28]} Qd6 {[%clk 01:19:27]} {[%emt 00:01:15]} 9. d4
{[%clk 01:00:01]} {[%emt 00:07:59]} a6 {[%clk 01:11:49]} {[%emt 00:08:07]} 10.
Bxc6+ {[%clk 00:57:03]} {[%emt 00:03:29]} bxc6 {[%clk 01:12:00]} {[%emt
00:00:19]} 11. Bf4 {[%clk 00:53:21]} {[%emt 00:04:11]} h6 {[%clk 01:06:44]}
{[%emt 00:05:46]} 12. Qf3 {[%clk 00:51:05]} {[%emt 00:02:46]} Bxc2 {[%clk
00:59:34]} {[%emt 00:07:40]} 13. Nxf7 {[%clk 00:50:21]} {[%emt 00:01:14]} Qe6+
{[%clk 00:59:47]} {[%emt 00:00:18]} 14. Ne5 {[%clk 00:50:46]} {[%emt 00:00:04]}
g5 {[%clk 00:58:41]} {[%emt 00:01:35]} 15. Bg3 {[%clk 00:49:05]} {[%emt
00:02:12]} Nf6 {[%clk 00:57:21]} {[%emt 00:01:49]} 16. Qe2 {[%clk 00:40:58]}
{[%emt 00:08:38]} Bh7 {[%clk 00:55:11]} {[%emt 00:02:40]} 17. f3 {[%clk
00:39:03]} {[%emt 00:02:24]} Bg7 {[%clk 00:39:31]} {[%emt 00:16:10]} 18. Na4
{[%clk 00:32:15]} {[%emt 00:07:19]} Qd6 {[%clk 00:33:13]} {[%emt 00:06:47]} 19.
Nc5 {[%clk 00:20:55]} {[%emt 00:11:50]} a5 {[%clk 00:21:36]} {[%emt 00:12:08]}
20. Bh2 {[%clk 00:17:34]} {[%emt 00:03:51]} Qb8 {[%clk 00:18:09]} {[%emt
00:03:57]} 21. Nxc6 {[%clk 00:16:52]} {[%emt 00:01:11]} 1-0